bitfinex-derivatives/quotes_SOLF0:USTF0_20220108
["timestamp","ask_amount","ask_price","bid_price","bid_amount"]
[1641684138853,4.0,143.3,143.27,2.23416985]
[1641684139054,5.58319082,143.29,143.27,2.23416985]
[1641684139554,5.58396452,143.27,143.22,27.66479]
[1641684139753,5.58396452,143.27,143.18,64.9386]
[1641684139754,4.0,143.26,143.18,64.9386]
[1641684140053,10.761,143.26,143.15,114.9394]
[1641684140255,6.761,143.26,143.15,104.5394]
[1641684140459,6.761,143.26,143.18,27.66479]
[1641684141056,6.761,143.26,143.19,1.7845228]
[1641684141657,12.761,143.26,143.19,1.7845228]
[1641684142359,12.761,143.26,143.21,27.66479]
[1641684142760,4.0,143.25,143.21,27.66479]
[1641684142960,9.58496147,143.25,143.19,1.7845228]
[1641684143161,5.58496147,143.25,143.22,1.7845228]
[1641684143861,9.58496147,143.25,143.19,1.7845228]
[1641684144161,5.58496147,143.25,143.19,1.7845228]
[1641684144563,9.58593979,143.22,143.19,1.7845228]
[1641684145365,9.58593979,143.22,143.17,1.7845228]
[1641684145562,4.0,143.2,143.17,1.7845228]
[1641684145764,4.0,143.2,143.12,1.7845228]
[1641684146364,4.0,143.21,143.12,1.7845228]
[1641684146664,5.58701068,143.19,143.12,27.66479]
[1641684146964,9.58701068,143.19,143.12,27.66479]
[1641684147168,5.58701068,143.19,143.13,1.7845228]
[1641684147366,4.0,143.18,143.13,1.7845228]
[1641684147766,9.58701068,143.19,143.13,1.7845228]
[1641684147969,4.0,143.18,143.13,1.7845228]
[1641684148288,4.0,143.16,143.11,1.7845228]
[1641684148466,6.70455494,143.19,143.11,1.7845228]
[1641684148467,9.58890141,143.15,143.11,1.7845228]
[1641684148667,27.66479,143.13,143.04,34.65364278]
[1641684148868,4.0,143.12,143.04,27.66479]
[1641684149066,9.58975458,143.12,143.05,1.78803805]
[1641684149468,5.58975458,143.12,143.05,1.78803805]
[1641684149670,6.70705086,143.14,143.05,12.77615825]
[1641684149867,5.58886858,143.15,143.05,12.77615825]
[1641684150066,5.58886858,143.15,143.06,4.0]
[1641684150269,13.69410391,143.19,143.05,12.77615825]
[1641684150467,13.69410391,143.19,143.07,1.78803805]
[1641684150667,17.69410391,143.19,143.1,27.66479]
[1641684151268,9.5885084,143.16,143.07,1.78803805]
[1641684151469,5.5885084,143.16,143.07,1.78803805]
[1641684151670,9.5885084,143.16,143.04,27.66479]
[1641684151870,4.0,143.15,143.04,27.66479]
[1641684152069,4.0,143.15,143.05,1.78780131]
[1641684152272,9.58928469,143.14,143.05,1.78780131]
[1641684152470,5.58928469,143.14,143.05,1.78780131]
[1641684152770,27.66479,143.13,143.05,1.78780131]
[1641684152970,14.42728469,143.14,143.05,1.78780131]
[1641684153574,4.0,143.13,143.05,1.78780131]
[1641684153771,14.42728469,143.14,143.05,1.78780131]
[1641684153971,14.42728469,143.14,143.05,5.78780131]
[1641684154372,14.42728469,143.14,143.06,1.78780131]
[1641684154779,14.42728469,143.14,143.05,1.78780131]
[1641684155774,8.838,143.14,143.05,5.78780131]
[1641684155975,5.58831335,143.16,143.05,5.78780131]
[1641684156175,5.58831335,143.16,143.06,1.78780131]
[1641684156773,37.25310335,143.16,143.07,27.66479]
[1641684156974,33.25310335,143.16,143.07,27.66479]
[1641684157574,5.58831335,143.16,143.08,1.78780131]
[1641684159978,6.70444895,143.19,143.08,1.78780131]
[1641684160177,6.70444895,143.19,143.09,4.0]
[1641684160378,6.70444895,143.19,143.1,4.0]
[1641684160576,6.70276776,143.23,143.11,4.0]
[1641684160778,6.70276776,143.23,143.16,27.66479]
[1641684161277,6.0,143.26,143.17,4.0]
[1641684161676,6.0,143.26,143.17,5.78780131]
[1641684161979,6.0,143.26,143.17,12.77006636]
[1641684162180,6.0,143.26,143.18,1.78780131]
[1641684162779,6.0,143.26,143.19,27.66479]
[1641684163178,4.0,143.25,143.19,27.66479]
[1641684163379,5.5850358,143.24,143.19,27.66479]
[1641684164782,5.5850358,143.24,143.16,27.66479]
[1641684165381,4.0,143.23,143.16,27.66479]
[1641684165784,5.58626066,143.21,143.14,27.66479]
[1641684166183,9.58748795,143.18,143.13,14.70161812]
[1641684166384,4.0,143.17,143.1,14.70161812]
[1641684166985,5.58868517,143.15,143.1,14.70161812]
[1641684167193,5.59021849,143.11,143.1,14.70161812]
[1641684167586,5.59021849,143.11,143.08,14.70161812]
[1641684168387,5.59021849,143.11,143.03,14.70161812]
[1641684168787,5.59021849,143.11,143.03,42.36640812]
[1641684168987,27.66479,143.13,143.04,1.78825543]
[1641684169186,10.70670885,143.15,143.04,1.78825543]
[1641684169386,10.70670885,143.15,143.04,16.48987355]
[1641684169886,10.70670885,143.15,143.05,1.78825543]
[1641684170294,10.70670885,143.15,143.05,19.1863163]
[1641684170494,4.0,143.14,143.05,19.1863163]
[1641684170890,4.0,143.13,143.05,19.1863163]
[1641684171090,4.0,143.13,143.06,17.39806087]
[1641684171293,4.0,143.13,143.06,19.1863163]
[1641684171689,4.0,143.13,143.07,1.78825543]
[1641684171890,27.66479,143.14,143.07,1.78825543]
[1641684172093,27.66479,143.14,143.07,4.48469818]
[1641684172792,27.66479,143.14,143.08,4.48469818]
[1641684172990,31.66479,143.14,143.08,4.48469818]
[1641684173289,5.59002164,143.12,143.08,4.48469818]
[1641684173692,5.59002164,143.12,143.04,14.70161812]
[1641684174091,5.59002164,143.12,143.05,1.78841474]
[1641684174293,4.0,143.11,143.05,1.78841474]
[1641684174492,9.59030643,143.11,143.05,1.78841474]
[1641684174692,4.0,143.1,143.05,1.78841474]
[1641684174894,5.5917686,143.07,143.05,1.78841474]
[1641684175296,5.5917686,143.07,143.04,17.40563503]
[1641684175494,5.5917686,143.07,143.04,14.70161812]
[1641684175696,5.5917686,143.07,143.01,42.36640812]
[1641684176098,5.5917686,143.07,143.02,1.78951847]
[1641684176696,5.5917686,143.07,143.02,4.49432118]
[1641684176896,69.85192164,143.12,143.04,27.66479]
[1641684177098,5.59002164,143.12,143.04,27.66479]
[1641684177295,5.59002164,143.12,143.05,1.78951847]
[1641684177697,5.59076355,143.1,143.05,4.49432118]
[1641684178096,5.58995685,143.12,143.06,1.78951847]
[1641684178297,9.58995685,143.12,143.06,1.78951847]
[1641684178498,9.58995685,143.12,143.06,4.49432118]
[1641684178697,5.59141424,143.08,143.06,2.70480271]
[1641684179300,5.59141424,143.08,143.01,27.66479]
[1641684179999,5.59141424,143.08,143.02,1.78942302]
[1641684180201,5.59141424,143.08,143.02,4.49039476]
[1641684180998,5.59141424,143.08,143.03,4.49039476]
[1641684181199,4.0,143.07,143.03,4.49039476]
[1641684181400,4.0,143.07,143.03,2.70097174]
[1641684181601,5.59141424,143.08,143.03,2.70097174]
[1641684181799,5.59141424,143.08,143.01,4.0]
[1641684182199,5.59141424,143.08,142.99,27.66479]
[1641684182802,5.59141424,143.08,143.0,1.78985433]
[1641684183102,5.59254052,143.05,143.0,1.78985433]
[1641684183300,5.59254052,143.05,142.99,27.66479]
[1641684184000,27.66479,143.06,142.99,27.66479]
[1641684184201,34.37427196,143.09,142.99,27.66479]
[1641684184700,34.37427196,143.09,143.0,1.78998699]
[1641684185099,62.03906196,143.09,143.0,1.78998699]
[1641684185300,34.37427196,143.09,143.0,1.78998699]
[1641684185901,5.59219649,143.06,143.0,1.78998699]
[1641684186102,5.59219649,143.06,143.0,5.78998699]
[1641684186301,33.25581002,143.09,143.0,5.78998699]
[1641684186502,10.99496363,143.08,143.0,1.78998699]
[1641684186703,4.0,143.05,142.96,42.36640812]
[1641684186903,6.99667658,143.04,142.96,14.70161812]
[1641684187103,27.66479,143.0,142.96,14.70161812]
[1641684187302,27.66479,143.0,142.92,42.36640812]
[1641684187904,5.59485671,142.99,142.92,42.36640812]
[1641684188504,5.59485671,142.99,142.9,27.66479]
[1641684188706,5.59603585,142.96,142.9,27.66479]
[1641684189306,5.59603585,142.96,142.88,14.70161812]
[1641684189506,5.59709014,142.94,142.88,14.70161812]
[1641684189707,5.59709014,142.94,142.86,27.66479]
[1641684190308,4.0,142.92,142.84,14.70161812]
[1641684190506,5.59806106,142.91,142.84,14.70161812]
[1641684190707,5.59806106,142.91,142.81,79.68281812]
[1641684191010,5.59806106,142.91,142.82,27.66479]
[1641684191508,9.59806106,142.91,142.81,79.68281812]
[1641684191707,4.0,142.89,142.81,79.68281812]
[1641684191908,9.59875637,142.89,142.82,2.68578481]
[1641684192110,5.59950711,142.87,142.82,2.68578481]
[1641684192708,33.26270139,142.92,142.82,2.68578481]
[1641684193109,33.26270139,142.92,142.83,27.66479]
[1641684193708,33.26270139,142.92,142.84,2.68578481]
[1641684194409,4.0,142.9,142.84,2.68578481]
[1641684194610,12.60309532,142.89,142.84,2.68578481]
[1641684194912,4.0,142.87,142.81,14.70161812]
[1641684195111,27.66479,142.83,142.81,14.70161812]
[1641684195811,27.66479,142.83,142.76,14.70161812]
[1641684197615,27.66479,142.83,142.75,52.81530294]
[1641684197816,31.66479,142.83,142.75,52.81530294]
[1641684198014,31.66479,142.83,142.75,25.15051294]
[1641684198015,9.60219267,142.81,142.75,25.15051294]
[1641684198216,5.60336972,142.78,142.72,38.92369765]
[1641684198616,5.60373977,142.77,142.72,38.92369765]
[1641684198816,5.60373977,142.77,142.69,25.13271922]
[1641684199217,27.66479,142.76,142.69,52.79750922]
[1641684200016,7.00819959,142.81,142.69,27.66479]
[1641684200218,6.72059907,142.85,142.7,11.00525394]
[1641684200219,65.6878,142.84,142.7,11.00525394]
[1641684200419,6.72059907,142.85,142.72,4.0]
[1641684200618,7.00574471,142.86,142.76,4.0]
[1641684200817,7.00574471,142.86,142.75,4.0]
[1641684201018,5.59898156,142.89,142.75,7.00280112]
[1641684201221,5.59898156,142.89,142.8,27.66479]
[1641684201619,5.59898156,142.89,142.8,21.66479]
[1641684202019,35.72577048,142.92,142.8,21.66479]
[1641684202518,41.32355243,142.92,142.8,21.66479]
[1641684202719,11.00304633,142.91,142.8,21.66479]
[1641684202918,5.59896971,142.89,142.75,8.75204633]
[1641684203117,27.66479,142.85,142.77,27.66479]
[1641684203723,27.66479,142.87,142.78,4.0]
[1641684203922,5.59896971,142.89,142.79,4.0]
[1641684204122,64.0296,142.91,142.8,4.0]
[1641684204321,64.0296,142.91,142.79,4.0]
[1641684204523,64.0296,142.91,142.8,4.0]
[1641684205328,64.0296,142.91,142.84,4.0]
[1641684205526,8.06098048,142.92,142.84,4.0]
[1641684205725,7.00206561,142.93,142.83,27.66479]
[1641684205924,7.00206561,142.93,142.86,4.0]
[1641684206130,7.00206561,142.93,142.84,5.749]
[1641684207124,6.0,142.85,142.84,5.749]
[1641684207325,6.0,142.85,142.84,4.0]
[1641684208525,6.0,142.85,142.83,31.66479]
[1641684208727,6.0,142.85,142.84,4.0]
[1641684209030,8.05370577,143.04,142.84,10.99520828]
[1641684209227,8.05370577,143.04,142.98,27.66479]
[1641684209727,8.05370577,143.04,142.88,4.0]
[1641684209928,8.05370577,143.04,142.94,4.0]
[1641684210528,8.05291046,143.06,142.98,4.0]
[1641684210928,6.99325151,143.11,142.99,4.0]
[1641684211332,6.99325151,143.11,142.99,59.32958]
[1641684212130,6.99325151,143.11,142.99,55.32958]
[1641684212730,10.99325151,143.11,142.99,55.32958]
[1641684212930,6.99325151,143.11,142.99,55.32958]
[1641684214535,4.0,143.1,142.99,55.32958]
[1641684215037,4.0,143.09,142.99,55.32958]
[1641684215237,31.66479,143.09,142.99,55.32958]
[1641684215436,37.25572921,143.09,142.99,55.32958]
[1641684215636,5.59093921,143.09,142.99,55.32958]
[1641684216537,5.5910002,143.09,142.99,55.32958]
[1641684220545,5.59186643,143.07,142.99,55.32958]
[1641684221545,9.59186643,143.07,142.99,55.32958]
[1641684221747,15.18388361,143.07,142.99,55.32958]
[1641684222746,4.0,143.03,142.99,27.66479]
[1641684222946,4.0,143.02,142.92,1.747]
[1641684223145,4.0,142.99,142.9,132.8203]
[1641684223345,4.0,142.99,142.87,6.99716615]
[1641684223548,5.59563541,142.97,142.89,27.66479]
[1641684223747,5.59676675,142.94,142.83,68.564]
[1641684223946,17.91176675,142.94,142.83,66.816]
[1641684224147,4.0,142.91,142.83,66.816]
[1641684224348,5.59782707,142.92,142.83,66.816]
[1641684224549,5.5985266,142.9,142.81,6.99986]
[1641684224949,6.71672399,142.93,142.79,104.73539765]
[1641684224950,4.0,142.87,142.79,104.73539765]
[1641684225150,4.0,142.87,142.79,38.92369765]
[1641684225348,9.60027501,142.86,142.77,7.00206561]
[1641684225549,37.26506501,142.86,142.77,34.66685561]
[1641684225749,4.0,142.85,142.75,38.92369765]
[1641684225951,5.60109201,142.83,142.75,38.92369765]
[1641684226350,9.60109201,142.83,142.74,27.66479]
[1641684227251,5.60109201,142.83,142.74,27.66479]
[1641684227551,7.00353679,142.9,142.81,27.66479]
[1641684228852,4.0,142.85,142.79,27.66479]
[1641684229053,6.0,142.83,142.74,14.68975372]
[1641684229253,6.0,142.83,142.76,14.68975372]
[1641684230553,6.0,142.83,142.75,27.66479]
[1641684230754,6.0,142.83,142.75,34.66783633]
[1641684230953,6.0,142.83,142.77,7.00206561]
[1641684231553,6.0,142.83,142.82,27.66479]
[1641684231853,4.0,142.85,142.77,14.68975372]
[1641684232253,5.60006212,142.86,142.76,14.68975372]
[1641684233054,5.60006212,142.86,142.74,4.0]
[1641684233254,5.60006212,142.86,142.74,11.00329155]
[1641684233453,5.60006212,142.86,142.77,27.66479]
[1641684234154,9.60006212,142.86,142.77,27.66479]
[1641684234754,5.60006212,142.86,142.77,27.66479]
[1641684235154,6.71860041,142.89,142.78,7.00133025]
[1641684235354,7.00133025,142.95,142.78,7.00133025]
[1641684235555,8.06082524,142.92,142.83,27.66479]
[1641684235755,4.0,142.88,142.78,2.68498074]
[1641684235954,5.5987662,142.89,142.78,2.68498074]
[1641684235955,9.5987662,142.89,142.78,2.68498074]
[1641684236154,5.5987662,142.89,142.78,2.68498074]
[1641684237057,5.5987662,142.89,142.77,9.68704635]
[1641684237455,6.0,142.86,142.77,9.68704635]
[1641684237659,6.0,142.86,142.79,27.66479]
[1641684239662,6.0,142.86,142.82,27.66479]
[1641684241663,6.0,142.86,142.79,27.66479]
[1641684241862,10.0,142.86,142.79,27.66479]
[1641684242063,5.60079986,142.84,142.77,27.66479]
[1641684242463,5.60193196,142.81,142.74,14.68975372]
[1641684242864,5.60193196,142.81,142.71,7.00500858]
[1641684243563,5.60193196,142.81,142.72,2.68290313]
[1641684243762,5.60193196,142.81,142.74,27.66479]
[1641684245165,6.72141191,142.83,142.74,27.66479]
[1641684245865,6.72141191,142.83,142.77,27.66479]
[1641684246766,5.60269714,142.79,142.75,2.68349478]
[1641684246968,11.67869714,142.79,142.75,2.68349478]
[1641684247168,11.67869714,142.79,142.74,27.66479]
[1641684247769,6.076,142.79,142.74,27.66479]
[1641684247968,6.72186005,142.82,142.77,4.0]
[1641684248171,7.815,142.83,142.77,4.0]
[1641684248372,6.0,142.86,142.77,4.0]
[1641684248572,6.0,142.86,142.8,7.00035002]
[1641684248773,0.0001,142.86,142.85,4.0]
[1641684248974,14.7055066,142.95,142.85,10.667]
[1641684249173,7.00035002,142.97,142.85,10.667]
[1641684249576,9.66901377,142.98,142.85,10.667]
[1641684249779,50.4264112,143.0,142.89,27.66479]
[1641684250677,35.7209046,143.0,142.89,27.66479]
[1641684251376,39.7209046,143.0,142.89,27.66479]
[1641684252380,4.0,142.98,142.89,27.66479]
[1641684252580,9.59519438,142.98,142.89,27.66479]
[1641684252784,4.0,142.97,142.89,27.66479]
[1641684252981,4.0,142.97,142.9,2.70299131]
[1641684253783,31.66479,142.97,142.9,2.70299131]
[1641684253982,31.66479,142.97,142.89,27.66479]
[1641684254786,27.66479,142.97,142.89,27.66479]
[1641684255184,5.59519438,142.98,142.89,27.66479]
[1641684255585,5.59519438,142.98,142.89,31.66479]
[1641684255883,64.6913,143.01,142.95,27.66479]
[1641684256084,6.99741096,143.03,142.95,27.66479]
[1641684256484,24.29858539,143.04,142.95,27.66479]
[1641684256786,20.29858539,143.04,142.95,27.66479]
[1641684256988,5.59307879,143.04,142.95,27.66479]
[1641684257586,40.25166707,143.07,142.95,31.66479]
[1641684257786,33.25645879,143.07,142.98,27.66479]
[1641684257988,4.0,143.05,142.98,27.66479]
[1641684258185,33.25645879,143.07,142.95,27.66479]
[1641684258186,4.0,143.03,142.95,27.66479]
[1641684258386,9.59330549,143.03,142.95,27.66479]
[1641684258587,4.0,143.02,142.95,27.66479]
[1641684258788,9.59330549,143.03,142.95,27.66479]
[1641684259388,5.59330549,143.03,142.95,27.66479]
[1641684259887,5.59330549,143.03,142.95,55.32958]
[1641684260686,33.25645879,143.07,142.96,4.0]
[1641684260887,33.25645879,143.07,142.95,59.32958]
[1641684261086,33.25645879,143.07,142.96,4.0]
[1641684261286,33.25645879,143.07,142.95,59.32958]
[1641684261687,33.25645879,143.07,142.95,55.32958]
[1641684261890,4.0,143.06,142.99,27.66479]
[1641684262189,4.0,143.06,142.95,27.66479]
[1641684262190,9.59297977,143.04,142.95,27.66479]
[1641684262790,4.0,143.03,142.95,27.66479]
[1641684263389,5.59384415,143.02,142.95,27.66479]
[1641684263991,9.59384415,143.02,142.95,27.66479]
[1641684264592,27.66479,143.04,142.95,27.66479]
[1641684264593,5.59471878,143.0,142.95,27.66479]
[1641684264992,11.18946331,143.0,142.95,27.66479]
[1641684265893,15.18946331,143.0,142.95,27.66479]
[1641684266095,15.18946331,143.0,142.93,27.66479]
[1641684266696,4.0,142.97,142.93,27.66479]
[1641684266996,5.59597744,142.96,142.87,128.8106]
[1641684267196,5.59597744,142.96,142.87,64.9443]
[1641684267799,5.59597744,142.96,142.89,27.66479]
[1641684269100,5.59471878,143.0,142.89,34.66073235]
[1641684269299,5.59471878,143.0,142.89,38.66073235]
[1641684269499,5.59471878,143.0,142.89,34.66073235]
[1641684269701,6.0,142.96,142.89,34.66073235]
[1641684269899,6.0,142.96,142.94,27.66479]
[1641684274705,5.59471878,143.0,142.94,27.66479]
[1641684274907,6.71195104,143.03,142.94,27.66479]
[1641684275105,65.2321,143.05,142.94,31.66479]
[1641684275306,65.2321,143.05,142.94,33.26146336]
[1641684275507,65.2321,143.05,142.94,39.00946336]
[1641684275705,65.2321,143.05,142.94,37.26146336]
[1641684275906,65.2321,143.05,143.01,27.66479]
[1641684276107,6.99594235,143.06,143.01,27.66479]
[1641684276506,4.0,143.05,142.95,2.70103303]
[1641684276706,9.59294207,143.04,142.95,2.70103303]
[1641684276907,5.59381182,143.02,142.95,2.70103303]
[1641684277107,5.59381182,143.02,142.92,14.68975372]
[1641684277508,4.0,143.03,142.92,14.68975372]
[1641684277509,4.0,142.97,142.92,14.68975372]
[1641684277710,5.59612062,142.96,142.92,14.68975372]
[1641684277909,5.59612062,142.96,142.92,2.70201639]
[1641684278912,5.59612062,142.96,142.9,2.70201639]
[1641684279109,4.0,142.99,142.9,2.70201639]
[1641684279110,10.71354519,143.0,142.9,2.70201639]
[1641684280215,10.71354519,143.0,142.91,14.68975372]
[1641684281013,4.0,142.98,142.91,14.68975372]
[1641684281219,5.59566952,142.97,142.9,17.39177011]
[1641684281413,9.59566952,142.97,142.9,17.39177011]
[1641684281814,4.0,142.96,142.9,17.39177011]
[1641684282015,4.0,142.94,142.88,25.21937447]
[1641684282216,4.0,142.93,142.88,25.21937447]
[1641684282416,5.59793487,142.91,142.88,25.21937447]
[1641684282815,15.19622279,142.91,142.88,14.68975372]
[1641684283015,15.19622279,142.91,142.84,110.24654372]
[1641684283221,15.19622279,142.91,142.84,42.35454372]
[1641684283515,5.59793487,142.91,142.84,42.35454372]
[1641684283920,9.59793487,142.91,142.84,42.35454372]
[1641684284918,15.59793487,142.91,142.84,42.35454372]
[1641684285119,15.59793487,142.91,142.84,27.66479]
[1641684286623,11.59793487,142.91,142.84,27.66479]
[1641684288322,6.0,142.91,142.84,27.66479]
[1641684289725,11.59832003,142.91,142.84,27.66479]
[1641684294431,15.59832003,142.91,142.83,25.19973351]
[1641684294832,15.59832003,142.91,142.82,27.66479]
[1641684294833,5.5995192,142.87,142.82,27.66479]
[1641684295031,5.5995192,142.87,142.81,14.68975372]
[1641684295631,5.60105278,142.84,142.81,14.68975372]
[1641684295832,9.60105278,142.84,142.8,5.98695372]
[1641684296032,5.60218091,142.81,142.76,38.92369765]
[1641684296931,5.60218091,142.81,142.72,27.66479]
[1641684297734,4.0,142.78,142.72,27.66479]
[1641684297934,9.60303526,142.78,142.72,27.66479]
[1641684298134,5.60303526,142.78,142.72,27.66479]
[1641684298537,5.60303526,142.78,142.71,10.50146786]
[1641684298734,5.60373946,142.77,142.71,10.50146786]
[1641684299138,5.60446798,142.75,142.68,10.50146786]
[1641684300137,5.60446798,142.75,142.67,65.5789]
[1641684300340,33.26751593,142.79,142.67,65.5789]
[1641684300536,33.26751593,142.79,142.71,27.66479]
[1641684301739,5.60272593,142.79,142.71,27.66479]
[1641684302539,7.00795403,142.81,142.71,27.66479]
[1641684302739,27.66479,142.82,142.71,27.66479]
[1641684302939,27.66479,142.82,142.72,4.0]
[1641684303341,92.90199,142.83,142.73,4.0]
[1641684303543,27.66479,142.83,142.73,4.0]
[1641684303941,31.66479,142.83,142.71,27.66479]
[1641684304344,27.66479,142.83,142.71,27.66479]
[1641684305743,27.66479,142.83,142.71,31.66479]
[1641684305943,9.60196464,142.81,142.71,27.66479]
[1641684310356,15.2041387,142.81,142.71,27.66479]
[1641684310758,4.0,142.78,142.7,10.47328184]
[1641684310957,33.26778609,142.79,142.7,10.47328184]
[1641684311457,4.0,142.77,142.7,10.47328184]
[1641684311658,4.0,142.76,142.7,10.47328184]
[1641684311859,5.60496876,142.74,142.67,65.5789]
[1641684312061,5.60496876,142.74,142.66,27.66479]
[1641684313864,5.60655094,142.7,142.66,27.66479]
[1641684316062,6.72644465,142.73,142.66,27.66479]
[1641684317565,4.0,142.71,142.66,27.66479]
[1641684317765,5.60619281,142.7,142.66,27.66479]
[1641684318665,5.60730782,142.68,142.63,27.66479]
[1641684321673,11.60730782,142.68,142.63,27.66479]
[1641684321871,6.0,142.68,142.63,27.66479]
[1641684322771,5.60475791,142.74,142.69,5.94115291]
[1641684322971,9.60475791,142.74,142.64,2.70219318]
[1641684323170,5.60475791,142.74,142.64,2.70219318]
[1641684324471,9.60566006,142.72,142.64,2.70219318]
[1641684324873,5.6063891,142.7,142.64,2.70219318]
[1641684326172,5.6063891,142.7,142.64,17.52819911]
[1641684327676,31.66479,142.72,142.64,17.52819911]
[1641684327677,9.60723184,142.68,142.64,17.52819911]
[1641684327975,9.60723184,142.68,142.64,14.82600593]
[1641684328175,5.60804056,142.66,142.64,14.82600593]
[1641684328777,5.60804056,142.66,142.62,2.70219318]
[1641684329978,5.60804056,142.66,142.61,14.82600593]
[1641684329979,4.0,142.65,142.61,14.82600593]
[1641684330181,5.60881891,142.64,142.61,14.82600593]
[1641684330878,5.60881891,142.64,142.58,14.82600593]
[1641684332479,5.60980269,142.61,142.58,14.82600593]
[1641684334282,5.61077678,142.59,142.58,5.93e-06]
[1641684334482,5.61157834,142.57,142.56,13.21822274]
[1641684334983,7.452,142.57,142.56,10.51602956]
[1641684335580,7.452,142.57,142.55,66.58848765]
[1641684335781,7.452,142.57,142.55,27.66479]
[1641684336181,31.66479,142.61,142.55,27.66479]
[1641684336382,6.73146041,142.62,142.55,27.66479]
[1641684336782,27.66479,142.65,142.55,27.66479]
[1641684336983,8.07567154,142.66,142.55,27.66479]
[1641684337184,8.07567154,142.66,142.55,55.32958]
[1641684337384,12.07567154,142.66,142.55,55.32958]
[1641684337585,4.0,142.62,142.55,55.32958]
[1641684337789,10.7312402,142.62,142.55,55.32958]
[1641684338185,4.0,142.61,142.55,55.32958]
[1641684338586,4.0,142.59,142.55,55.32958]
[1641684338790,4.0,142.58,142.55,55.32958]
[1641684338988,4.0,142.56,142.55,55.32958]
[1641684339288,12.68700702,142.56,142.49,38.92369765]
[1641684339488,12.68700702,142.56,142.48,38.92369765]
[1641684340090,5.667,142.56,142.48,38.92369765]
[1641684340292,9.61220883,142.55,142.48,38.92369765]
[1641684340491,9.61220883,142.55,142.46,10.48267429]
[1641684340691,5.61335192,142.52,142.46,10.48267429]
[1641684340893,5.61210025,142.55,142.46,10.48267429]
[1641684341092,27.66479,142.51,142.46,10.48267429]
[1641684343192,34.49679,142.51,142.46,10.48267429]
[1641684343594,22.54159639,142.51,142.46,10.48267429]
[1641684344095,22.54159639,142.51,142.42,65.4141]
[1641684345098,22.54159639,142.51,142.45,4.0]
[1641684345302,15.70959639,142.51,142.45,4.0]
[1641684345500,27.66479,142.53,142.46,4.0]
[1641684345699,6.73312083,142.58,142.46,11.01705143]
[1641684346299,6.73312083,142.58,142.46,7.01705143]
[1641684347202,27.66479,142.56,142.47,27.66479]
[1641684348003,27.66479,142.56,142.5,4.0]
[1641684348201,34.39791083,142.58,142.52,4.0]
[1641684348402,6.73312083,142.58,142.48,7.01631293]
[1641684348603,76.3391,142.62,142.51,4.0]
[1641684349003,76.3391,142.62,142.49,68.8349]
[1641684349206,27.66479,142.61,142.5,27.66479]
[1641684349403,27.66479,142.61,142.49,68.8349]
[1641684349404,5.61015591,142.6,142.49,68.8349]
[1641684349605,5.61015591,142.6,142.49,72.8349]
[1641684350208,5.61015591,142.6,142.49,68.8349]
[1641684350408,5.61015591,142.6,142.51,4.0]
[1641684350610,5.61015591,142.6,142.49,68.8349]
[1641684350810,5.61015591,142.6,142.49,72.8349]
[1641684351109,5.61015591,142.6,142.5,4.0]
[1641684351310,5.61015591,142.6,142.5,6.69112903]
[1641684351811,11.61015591,142.6,142.5,6.69112903]
[1641684352009,11.61015591,142.6,142.5,4.0]
[1641684352212,11.61015591,142.6,142.51,4.0]
[1641684352412,6.0,142.6,142.5,4.0]
[1641684352611,6.0,142.6,142.55,4.0]
[1641684352811,6.0,142.6,142.56,4.0]
[1641684353013,6.0,142.6,142.54,4.0]
[1641684353314,6.0,142.6,142.56,27.66479]
[1641684353512,6.0,142.6,142.54,31.66479]
[1641684353711,6.0,142.6,142.54,27.66479]
[1641684354110,6.0,142.6,142.52,66.648]
[1641684354313,6.0,142.6,142.55,2.69434297]
[1641684354910,6.0,142.6,142.56,4.0]
[1641684355115,6.0,142.6,142.57,27.66479]
[1641684355412,6.0,142.6,142.59,4.0]
[1641684355817,5.60760339,142.67,142.59,4.0]
[1641684356012,12.6178361,142.72,142.6,4.0]
[1641684356612,12.6178361,142.72,142.59,4.0]
[1641684356811,5.60618914,142.7,142.59,4.0]
[1641684357012,5.60618914,142.7,142.58,72.7597]
[1641684357214,27.66479,142.69,142.58,68.7597]